bitfinex/quotes_SOLUSD_20250717
["timestamp","ask_amount","ask_price","bid_price","bid_amount"]
[1752747233243,0.68,176.82,176.79,5.24864382]
[1752747233433,0.68,176.82,176.76,5.24864382]
[1752747233434,5.92864382,176.82,176.76,5.24864382]
[1752747233634,5.65492562,176.84,176.76,5.24864382]
[1752747233635,5.92864382,176.81,176.76,5.24864382]
[1752747233967,0.68,176.8,176.74,0.03]
[1752747234158,0.68,176.8,176.76,5.24864382]
[1752747234360,5.24864382,176.82,176.76,5.24864382]
[1752747234361,0.68,176.79,176.76,5.24864382]
[1752747234529,0.68,176.79,176.77,5.24864382]
[1752747235342,5.6558038,176.81,176.77,5.24864382]
[1752747235571,0.68,176.78,176.77,5.24864382]
[1752747235943,0.68,176.78,176.76,5.24864382]
[1752747236145,0.68,176.77,176.75,5.24864382]
[1752747236339,10.90444762,176.81,176.75,5.24864382]
[1752747236340,0.68,176.76,176.75,5.24864382]
[1752747236537,0.68,176.83,176.75,5.91864382]
[1752747236757,26.0,176.87,176.82,5.24864382]
[1752747236960,0.74,176.85,176.76,52.37055991]
[1752747237152,0.74,176.85,176.81,5.24864382]
[1752747237865,11.64343327,176.85,176.8,5.24864382]
[1752747238060,10.96343327,176.85,176.8,5.24864382]
[1752747238264,0.68,176.84,176.8,5.24864382]
[1752747239355,0.68,176.83,176.8,5.24864382]
[1752747239561,0.68,176.83,176.81,5.24864382]
[1752747239774,0.68,176.83,176.82,5.24864382]
[1752747240269,0.06,176.85,176.82,5.24864382]
[1752747240485,0.06,176.85,176.84,5.24864382]
[1752747240882,0.74,176.85,176.82,5.24864382]
[1752747241175,0.68,176.84,176.82,5.24864382]
[1752747241354,0.06,176.85,176.82,5.24864382]
[1752747241558,0.68,176.83,176.82,5.24864382]
[1752747241752,0.06,176.85,176.82,5.24864382]
[1752747241978,0.06,176.85,176.84,5.24864382]
[1752747242180,0.06,176.85,176.84,93.34864382]
[1752747242863,0.06,176.85,176.84,11.57347304]
[1752747243663,0.06,176.85,176.84,10.90347304]
[1752747244966,0.06,176.85,176.84,11.57347304]
[1752747245369,0.06,176.85,176.84,99.67347304]
[1752747248397,0.06,176.88,176.84,99.67347304]
[1752747248398,0.06,176.88,176.84,139.8105461]
[1752747248580,0.06,176.88,176.87,5.24864382]
[1752747248780,0.06,176.88,176.87,10.90251389]
[1752747249177,0.06,176.88,176.87,11.57251389]
[1752747249779,0.06,176.88,176.87,10.90251389]
[1752747250494,0.74,176.88,176.87,5.24864382]
[1752747251381,6.39362501,176.88,176.82,88.1]
[1752747251593,0.69,176.87,176.81,5.65576858]
[1752747251800,0.69,176.87,176.84,5.24864382]
[1752747252009,0.69,176.87,176.85,5.24864382]
[1752747252309,0.69,176.86,176.79,88.1]
[1752747252514,5.93864382,176.86,176.81,5.24864382]
[1752747252700,0.69,176.85,176.81,5.24864382]
[1752747253095,14.19387607,176.88,176.83,5.24864382]
[1752747253096,0.69,176.84,176.83,5.24864382]
[1752747253294,0.75,176.88,176.83,5.24864382]
[1752747253493,0.69,176.87,176.84,5.24864382]
[1752747253818,0.69,176.86,176.82,5.24864382]
[1752747254319,0.69,176.86,176.81,35.85572561]
[1752747254320,0.69,176.86,176.83,5.24864382]
[1752747254489,0.69,176.85,176.83,5.24864382]
[1752747255409,0.69,176.84,176.82,5.24864382]
[1752747255601,0.69,176.83,176.79,26.0]
[1752747255798,0.69,176.83,176.8,5.65601159]
[1752747255999,0.69,176.83,176.82,5.24864382]
[1752747257188,0.69,176.85,176.82,5.24864382]
[1752747257389,0.69,176.84,176.82,5.24864382]
[1752747257796,0.69,176.84,176.79,119.75612242]
[1752747258116,0.69,176.83,176.8,5.24864382]
[1752747258314,5.65394835,176.87,176.8,5.24864382]
[1752747258496,5.93864382,176.86,176.81,5.24864382]
[1752747258813,0.69,176.85,176.81,5.24864382]
[1752747259015,0.69,176.84,176.81,10.90442341]
[1752747259394,0.69,176.83,176.82,5.24864382]
[1752747261024,0.69,176.86,176.82,10.90407832]
[1752747261316,0.69,176.85,176.82,10.90407832]
[1752747261494,0.69,176.84,176.81,5.65567689]
[1752747261694,0.69,176.84,176.82,5.24864382]
[1752747262408,0.69,176.87,176.83,5.24864382]
[1752747262606,0.69,176.86,176.84,5.24864382]
[1752747262808,5.30864382,176.88,176.83,5.24864382]
[1752747263026,0.69,176.87,176.83,5.24864382]
[1752747263214,6.34405182,176.87,176.83,5.24864382]
[1752747263516,0.69,176.86,176.82,5.24864382]
[1752747263716,0.69,176.86,176.81,88.1]
[1752747264017,0.69,176.86,176.81,93.34864382]
[1752747264394,5.65405182,176.87,176.81,93.34864382]
[1752747264395,0.69,176.85,176.82,5.24864382]
[1752747264594,10.90269564,176.87,176.82,5.24864382]
[1752747264796,0.69,176.84,176.82,5.24864382]
[1752747265298,0.69,176.84,176.81,93.34864382]
[1752747265497,0.69,176.84,176.82,5.24864382]
[1752747265692,0.69,176.85,176.83,5.24864382]
[1752747266317,0.69,176.85,176.84,5.24864382]
[1752747267621,0.69,176.85,176.83,5.24864382]
[1752747267925,0.69,176.84,176.83,5.24864382]
[1752747268820,0.69,176.86,176.83,5.24864382]
[1752747269030,5.7139913,176.87,176.83,5.24864382]
[1752747269232,0.75,176.87,176.83,5.65509078]
[1752747269411,0.69,176.86,176.84,5.24864382]
[1752747269822,0.69,176.85,176.83,5.24864382]
[1752747270132,0.69,176.84,176.83,5.24864382]
[1752747270822,0.69,176.86,176.83,5.24864382]
[1752747271138,0.69,176.85,176.84,5.24864382]
[1752747271708,0.75,176.87,176.84,5.24864382]
[1752747271918,0.69,176.86,176.84,5.24864382]
[1752747272617,0.69,176.85,176.84,5.24864382]
[1752747274339,0.69,176.85,176.8,88.1]
[1752747274542,0.69,176.85,176.81,5.24864382]
[1752747274940,5.24864382,176.82,176.79,0.03]
[1752747275132,5.24864382,176.8,176.79,0.03]
[1752747275535,5.93864382,176.8,176.79,0.03]
[1752747275750,11.59475241,176.8,176.79,0.03]
[1752747276261,28.37943638,176.8,176.79,0.03]
[1752747276567,58.51943638,176.8,176.79,0.03]
[1752747278847,53.27079256,176.8,176.79,0.03]
[1752747279046,58.51943638,176.8,176.79,0.03]
[1752747279247,53.27079256,176.8,176.79,0.03]
[1752747279432,58.51943638,176.8,176.79,0.03]
[1752747279833,0.69,176.8,176.79,0.03]
[1752747280052,0.69,176.8,176.79,5.27864382]
[1752747281031,0.69,176.84,176.79,5.27864382]
[1752747281354,0.69,176.83,176.8,5.24864382]
[1752747281552,0.69,176.82,176.79,5.27864382]
[1752747282053,0.69,176.82,176.8,5.24864382]
[1752747282628,0.69,176.84,176.8,5.24864382]
[1752747282828,52.57924425,176.85,176.8,5.24864382]
[1752747282829,0.69,176.83,176.8,5.24864382]
[1752747283260,0.69,176.82,176.8,5.24864382]
[1752747284929,0.69,176.82,176.79,0.03]
[1752747285150,0.69,176.82,176.8,5.24864382]
[1752747285351,0.69,176.82,176.79,0.03]
[1752747285352,0.69,176.81,176.79,5.27864382]
[1752747285642,30.83,176.85,176.8,0.69]
[1752747285846,30.81,176.85,176.82,5.24864382]
[1752747286049,30.12,176.85,176.83,5.24864382]
[1752747286657,30.81,176.85,176.83,5.24864382]
[1752747286832,30.81,176.85,176.82,5.24864382]
[1752747287036,30.81,176.85,176.8,6.3459186]
[1752747287242,0.69,176.84,176.82,5.24864382]
[1752747288356,0.69,176.83,176.79,0.03]
[1752747288761,41.023169,176.85,176.8,5.24864382]
[1752747288944,0.69,176.82,176.8,5.24864382]
[1752747289769,30.1,176.84,176.81,5.24864382]
[1752747290072,30.1,176.84,176.79,0.03]
[1752747290073,30.79,176.84,176.82,5.24864382]
[1752747290646,0.69,176.83,176.81,5.24864382]
[1752747291056,0.69,176.82,176.8,5.24864382]
[1752747291380,0.69,176.81,176.8,5.24864382]
[1752747291871,35.75498772,176.84,176.8,5.24864382]
[1752747292171,0.69,176.83,176.8,5.24864382]
[1752747292361,0.69,176.82,176.8,5.24864382]
[1752747292673,0.69,176.81,176.79,5.27864382]
[1752747292872,6.4045172,176.85,176.8,5.24864382]
[1752747293062,0.69,176.84,176.8,5.24864382]
[1752747293462,0.69,176.83,176.8,5.24864382]
[1752747293768,0.69,176.83,176.81,5.24864382]
[1752747294956,0.69,176.82,176.79,5.6862944]
[1752747295276,0.69,176.82,176.79,0.03]
[1752747295462,0.69,176.82,176.8,5.24864382]
[1752747295768,0.69,176.82,176.79,0.03]
[1752747295976,0.69,176.82,176.8,5.24864382]
[1752747297480,10.90351468,176.84,176.79,5.27864382]
[1752747297782,5.93864382,176.81,176.79,0.03]
[1752747297977,22.03332779,176.8,176.79,0.03]
[1752747298182,22.72332779,176.8,176.79,0.03]
[1752747299185,28.37943638,176.8,176.79,0.03]
[1752747301690,58.45943638,176.8,176.79,0.03]
[1752747302280,42.78468397,176.76,176.74,0.03]
[1752747302485,26.0,176.72,176.71,0.03]
[1752747302660,61.32864382,176.72,176.71,0.03]
[1752747302988,16.78468397,176.71,176.63,5.24864382]
[1752747303163,10.90859401,176.68,176.63,5.24864382]
[1752747303486,30.75,176.67,176.62,13.18714382]
[1752747303665,16.78468397,176.63,176.61,0.2]
[1752747303865,52.09332779,176.62,176.61,0.2]
[1752747304069,52.78332779,176.62,176.61,0.2]
[1752747305286,30.75,176.62,176.61,0.2]
[1752747305596,41.66051676,176.62,176.61,0.2]
[1752747306569,35.99864382,176.62,176.61,0.2]
[1752747307080,58.44520073,176.62,176.61,0.2]
[1752747307789,42.78468397,176.58,176.57,0.2]
[1752747308085,72.86468397,176.58,176.57,0.2]
[1752747308385,78.80332779,176.58,176.57,0.2]
[1752747309487,84.4664833,176.58,176.57,0.2]
[1752747312584,79.21783948,176.58,176.57,0.2]
[1752747312784,42.78468397,176.58,176.57,0.2]
[1752747313089,54.3864833,176.58,176.57,0.2]
[1752747313307,84.4464833,176.58,176.57,0.2]
[1752747313608,78.78332779,176.58,176.57,0.2]
[1752747313926,5.93864382,176.6,176.57,0.2]
[1752747314090,30.08,176.59,176.57,5.44864382]
[1752747314290,30.08,176.58,176.57,5.44864382]
[1752747314592,30.08,176.58,176.57,0.2]
[1752747314789,30.08,176.58,176.57,6.13864382]
[1752747315012,30.08,176.58,176.57,9.28384821]
[1752747315211,30.08,176.59,176.57,9.28384821]
[1752747315409,0.69,176.63,176.58,9.08384821]
[1752747315589,30.08,176.62,176.59,8.39384821]
[1752747315909,56.08,176.62,176.59,8.39384821]
[1752747316621,30.08,176.62,176.6,8.39384821]
[1752747317213,30.08,176.62,176.61,8.39384821]
[1752747317714,30.08,176.62,176.6,9.08384821]
[1752747317914,22.44566213,176.65,176.6,8.39384821]
[1752747318215,30.06,176.64,176.6,8.39384821]
[1752747318515,16.78468397,176.66,176.63,8.39384821]
[1752747318691,30.06,176.65,176.64,8.39384821]
[1752747318895,30.06,176.65,176.64,9.08384821]
[1752747319799,30.06,176.65,176.64,8.39384821]
[1752747320004,30.06,176.66,176.64,8.39384821]
[1752747320192,30.06,176.66,176.65,8.39384821]
[1752747320694,30.06,176.66,176.65,9.08384821]
[1752747320899,0.69,176.72,176.65,9.08384821]
[1752747321090,30.06,176.71,176.68,8.39384821]
[1752747322213,0.69,176.72,176.66,0.69]
[1752747322214,6.34872203,176.72,176.69,8.39384821]
[1752747322420,30.06,176.71,176.69,8.39384821]
[1752747322597,30.06,176.71,176.68,8.39384821]
[1752747322791,0.69,176.72,176.68,8.39384821]
[1752747322992,30.06,176.71,176.7,8.39384821]
[1752747323399,30.06,176.72,176.7,8.39384821]
[1752747324016,30.06,176.72,176.69,8.39384821]
[1752747324198,30.06,176.72,176.7,8.39384821]
[1752747324400,16.78468397,176.77,176.71,9.08384821]
[1752747324593,30.06,176.76,176.73,8.39384821]
[1752747326015,30.06,176.76,176.74,8.39384821]
[1752747327220,0.69,176.8,176.75,9.08384821]
[1752747327420,30.04,176.79,176.76,8.39384821]
[1752747327719,0.69,176.78,176.72,0.69]
[1752747327893,30.04,176.77,176.75,8.39384821]
[1752747328099,30.04,176.77,176.76,8.39384821]
[1752747328503,30.04,176.77,176.76,9.08384821]
[1752747329503,30.02,176.79,176.76,9.08384821]
[1752747329716,30.02,176.79,176.77,8.39384821]
[1752747329906,30.71,176.79,176.75,8.39384821]
[1752747330914,30.02,176.79,176.76,8.39384821]
[1752747331118,30.02,176.79,176.77,8.39384821]
[1752747331308,30.02,176.79,176.77,9.08384821]
[1752747333325,30.02,176.79,176.78,8.39384821]
[1752747333920,30.02,176.8,176.77,0.69]
[1752747334101,30.02,176.8,176.78,8.39384821]
[1752747334299,30.02,176.8,176.79,9.08384821]
[1752747334525,30.02,176.8,176.79,0.69]
[1752747334718,30.02,176.8,176.79,9.08384821]
[1752747334903,30.02,176.8,176.79,8.39384821]
[1752747336215,30.0,176.83,176.79,14.74023451]
[1752747336420,30.0,176.83,176.82,8.39384821]
[1752747336624,0.06,176.85,176.82,9.08384821]
[1752747336835,0.06,176.85,176.84,8.39384821]
[1752747336836,30.06,176.85,176.84,8.39384821]
[1752747337145,0.06,176.85,176.84,9.08384821]
[1752747338436,0.06,176.85,176.84,14.73867743]
[1752747339430,0.06,176.85,176.84,128.83867743]
[1752747339629,0.06,176.85,176.84,120.44482922]
[1752747339819,0.06,176.85,176.84,128.83867743]
[1752747340221,0.06,176.87,176.84,40.73867743]
[1752747340534,0.06,176.87,176.86,14.04803796]
[1752747340908,0.06,176.87,176.86,14.74803796]
[1752747341333,0.06,176.87,176.86,6.35418975]
[1752747341627,1e-08,176.87,176.86,14.74803796]
[1752747341834,1e-08,176.88,176.86,23.14188617]
[1752747342044,1e-08,176.88,176.87,17.48769642]
[1752747342236,1e-08,176.88,176.87,47.46769642]
[1752747342550,1e-08,176.9,176.87,79.12156649]
[1752747342847,1e-08,176.9,176.89,42.30814821]
[1752747343454,1e-08,176.9,176.89,43.00814821]
[1752747343634,1e-08,176.9,176.89,34.6143]
[1752747343828,1e-08,176.9,176.89,43.00814821]
[1752747344746,1e-08,176.9,176.89,48.66137903]
[1752747346029,0.06,176.95,176.89,153.546063]
[1752747346340,0.1,176.97,176.96,26.0]
[1752747346673,0.1,176.97,176.96,70.00484278]
[1752747346943,0.1,176.97,176.96,40.74484278]
[1752747347158,1e-08,176.97,176.96,128.84484278]
[1752747347331,1e-08,176.97,176.96,40.74484278]
[1752747347953,0.1,177.03,176.96,54.87232921]
[1752747348151,0.1,177.03,177.02,8.39384821]
[1752747348645,0.1,177.03,177.02,14.74292741]
[1752747349037,0.2,177.06,177.05,8.39384821]
[1752747349444,0.2,177.06,177.05,9.09384821]
[1752747349644,0.2,177.06,177.02,6.3490792]
[1752747349964,0.7,177.05,177.02,8.39384821]
[1752747350171,0.7,177.05,177.01,8.39384821]
[1752747350374,0.7,177.05,177.02,8.39384821]
[1752747350566,0.2,177.06,177.04,8.39384821]
[1752747350754,0.2,177.06,177.05,14.0419702]
[1752747351068,0.2,177.06,177.05,44.6819702]
[1752747351958,0.7,177.13,177.05,84.80227519]
[1752747352165,0.76,177.15,177.12,8.39384821]
[1752747352380,0.06,177.15,177.14,8.39384821]
[1752747352867,0.06,177.15,177.14,14.03910055]
[1752747353440,0.06,177.15,177.14,14.73910055]
[1752747354465,0.06,177.15,177.14,8.39384821]
[1752747354765,0.06,177.15,177.14,14.03910055]
[1752747355157,0.76,177.23,177.14,70.65910055]
[1752747355467,0.76,177.23,177.22,8.39384821]
[1752747355648,0.06,177.23,177.22,8.39384821]
[1752747355854,0.76,177.23,177.22,8.39384821]
[1752747356064,0.06,177.23,177.22,8.39384821]
[1752747356270,0.76,177.23,177.17,55.9]
[1752747356444,0.76,177.23,177.22,8.39384821]
[1752747356645,0.06,177.23,177.22,8.39384821]
[1752747356849,0.06,177.23,177.22,14.03655219]
[1752747357667,0.06,177.23,177.22,5.64270398]
[1752747357858,0.06,177.23,177.22,8.39384821]
[1752747358171,0.76,177.23,177.22,8.39384821]
[1752747358675,0.06,177.23,177.22,8.39384821]
[1752747359460,0.06,177.23,177.22,14.03655219]
[1752747360068,0.06,177.23,177.22,14.73655219]
[1752747360774,0.06,177.23,177.22,5.64270398]
[1752747360963,0.06,177.23,177.21,5.64295961]
[1752747361164,0.06,177.23,177.22,8.39384821]
[1752747361973,0.06,177.23,177.2,26.0]
[1752747361974,0.76,177.23,177.21,8.39384821]
[1752747362477,0.76,177.23,177.16,37.021]
[1752747362478,0.7,177.22,177.2,8.39384821]
[1752747362652,0.7,177.21,177.18,8.39384821]
[1752747362855,5.64334085,177.2,177.13,36.22556538]
[1752747363172,0.7,177.19,177.17,8.39384821]
[1752747363566,0.7,177.18,177.13,35.52556538]
[1752747363874,0.7,177.18,177.17,8.39384821]
[1752747364654,0.7,177.18,177.16,8.39384821]
[1752747365071,0.7,177.18,177.17,8.39384821]
[1752747365582,31.64303648,177.21,177.17,8.39384821]
[1752747365583,0.7,177.21,177.17,8.39384821]
[1752747365786,0.7,177.2,177.18,8.39384821]
[1752747365951,0.7,177.19,177.18,8.39384821]
[1752747366157,0.7,177.22,177.18,8.39384821]
[1752747366357,0.06,177.23,177.21,8.39384821]
[1752747366558,0.06,177.23,177.22,8.39384821]
[1752747366776,0.06,177.23,177.15,32.34493367]
[1752747367080,0.7,177.22,177.2,8.39384821]
[1752747367378,0.7,177.21,177.15,62.20493367]
[1752747367585,0.7,177.21,177.17,8.39384821]
[1752747367968,0.7,177.2,177.14,6.3452005]
[1752747368164,0.7,177.2,177.19,8.39384821]
[1752747368356,0.7,177.22,177.14,6.3452005]
[1752747368551,0.7,177.22,177.19,8.39384821]
[1752747368757,0.7,177.22,177.2,8.39384821]
[1752747369172,0.06,177.23,177.21,8.39384821]
[1752747369476,0.06,177.23,177.22,8.39384821]
[1752747370781,14.79635878,177.23,177.15,31.64471654]
[1752747370969,0.72,177.22,177.17,8.39384821]
[1752747371372,0.72,177.22,177.14,30.56]
[1752747371373,9.11384821,177.22,177.14,30.56]
[1752747371563,8.39384821,177.22,177.14,30.56]
[1752747371879,0.72,177.21,177.17,8.39384821]
[1752747372081,0.72,177.2,177.17,8.39384821]
[1752747372265,0.72,177.2,177.18,8.39384821]
[1752747372674,14.09635878,177.23,177.18,8.39384821]
[1752747372883,0.72,177.22,177.19,8.39384821]
[1752747373082,0.72,177.22,177.2,8.39384821]
[1752747373272,0.06,177.23,177.2,8.39384821]
[1752747373474,6.42241243,177.23,177.16,0.66]
[1752747373689,0.78,177.23,177.2,8.39384821]
[1752747373884,0.06,177.23,177.22,8.39384821]
[1752747374067,0.78,177.23,177.22,8.39384821]
[1752747374484,0.78,177.23,177.17,26.0]
[1752747374686,0.78,177.23,177.16,26.0]
[1752747374887,0.78,177.23,177.21,8.39384821]
[1752747375884,0.72,177.22,177.2,8.39384821]
[1752747376092,0.06,177.23,177.21,8.39384821]
[1752747376300,0.06,177.23,177.22,8.39384821]
[1752747378474,0.78,177.23,177.17,5.6442216]
[1752747378802,0.78,177.23,177.21,8.39384821]
[1752747378971,0.06,177.23,177.21,8.39384821]
[1752747379370,0.06,177.23,177.22,9.05384821]
[1752747379600,0.06,177.23,177.22,8.39384821]
[1752747381299,0.06,177.23,177.22,14.03655219]
[1752747382172,0.06,177.23,177.22,8.39384821]
[1752747382396,0.78,177.23,177.21,8.39384821]
[1752747382901,0.06,177.23,177.22,8.39384821]
[1752747383265,0.78,177.23,177.17,35.48418726]
[1752747383492,9.17384821,177.23,177.18,8.39384821]
[1752747383688,0.72,177.22,177.17,8.39384821]
[1752747383896,8.39384821,177.21,177.15,5.67482566]
[1752747384194,0.72,177.2,177.15,0.03]
[1752747384368,0.72,177.2,177.15,14.06874289]
[1752747384563,0.72,177.19,177.16,8.39384821]
[1752747384974,0.72,177.18,177.15,14.06876368]
[1752747385186,0.72,177.21,177.15,6.33491547]
[1752747385375,0.72,177.21,177.16,8.39384821]
[1752747385574,0.72,177.21,177.15,5.67491547]
[1752747385575,8.39384821,177.19,177.15,0.03]
[1752747385796,0.72,177.18,177.15,0.03]
[1752747385984,9.11384821,177.18,177.15,0.03]
[1752747386502,0.72,177.17,177.15,0.03]
[1752747387052,0.72,177.16,177.15,0.03]
[1752747387755,31.54314721,177.16,177.15,0.03]
[1752747389047,57.54314721,177.16,177.15,0.03]
[1752747389937,33.14894721,177.16,177.15,0.03]
[1752747390137,62.96894721,177.16,177.15,0.03]
[1752747392059,69.56204721,177.16,177.15,1e-08]
[1752747393161,31.348199,177.16,177.15,1e-08]
[1752747393457,61.36314721,177.16,177.15,1e-08]
[1752747393863,52.969299,177.16,177.15,1e-08]
[1752747394058,61.36314721,177.16,177.15,1e-08]
[1752747394961,47.32468397,177.16,177.15,1e-08]
[1752747395562,52.969299,177.16,177.15,1e-08]
[1752747395768,61.36314721,177.16,177.15,1e-08]
[1752747396063,23.149299,177.16,177.15,1e-08]
[1752747396266,52.969299,177.16,177.15,1e-08]
[1752747396465,0.06,177.23,177.18,26.0]
[1752747396663,0.06,177.23,177.22,8.39384821]
[1752747397049,44.63625904,177.23,177.16,8.39384821]
[1752747397254,16.78468397,177.22,177.17,8.39384821]
[1752747397455,17.50468397,177.22,177.18,8.39384821]
[1752747398162,0.72,177.21,177.17,8.39384821]
[1752747399451,0.72,177.2,177.16,8.39384821]
[1752747399650,0.72,177.19,177.16,8.39384821]
[1752747399855,29.82,177.2,177.17,8.39384821]
[1752747400147,0.72,177.19,177.16,8.39384821]
[1752747401467,35.46342768,177.2,177.16,8.39384821]
[1752747401665,36.13342768,177.2,177.16,8.39384821]
[1752747402550,0.67,177.19,177.15,8.39384822]
[1752747403051,0.67,177.18,177.15,8.39384822]
[1752747403283,29.82,177.18,177.15,8.39384822]
[1752747403475,30.49,177.18,177.15,1e-08]
[1752747404261,0.67,177.17,177.15,1e-08]
[1752747405149,26.0,177.21,177.16,9.07384821]
[1752747405371,29.82,177.2,177.19,8.39384821]
[1752747406050,29.82,177.2,177.18,8.39384821]
[1752747406254,29.82,177.2,177.17,0.68]
[1752747406468,29.82,177.2,177.18,8.39384821]
[1752747406980,29.82,177.2,177.17,8.39384821]
[1752747407173,0.67,177.19,177.16,8.39384821]
[1752747407771,29.82,177.2,177.15,8.39384822]
[1752747407972,29.82,177.2,177.16,0.68]
[1752747408478,35.46348029,177.2,177.16,9.07384821]
[1752747409853,0.67,177.19,177.15,1e-08]
[1752747410273,29.8,177.18,177.15,9.07384822]
[1752747410478,35.44348029,177.2,177.17,8.39384821]
[1752747410772,0.06,177.23,177.19,8.39384821]
[1752747410988,29.86,177.23,177.2,8.39384821]
[1752747411276,35.50248271,177.23,177.2,8.39384821]
[1752747411452,36.17248271,177.23,177.19,8.39384821]
[1752747411652,29.86,177.23,177.21,8.39384821]
[1752747412460,35.50242216,177.23,177.2,9.07384821]
[1752747412777,35.50242216,177.23,177.2,0.68]
[1752747413371,43.89627037,177.23,177.2,0.68]
[1752747413677,16.78468397,177.22,177.2,0.68]
[1752747414177,60.62155458,177.21,177.2,0.68]
[1752747414573,60.62155458,177.21,177.15,1e-08]
[1752747414574,25.17853218,177.16,177.15,1e-08]
[1752747414775,46.58468397,177.16,177.15,1e-08]
[1752747414949,54.97853218,177.16,177.15,1e-08]
[1752747415150,46.58468397,177.16,177.15,1e-08]
[1752747415859,54.97853218,177.16,177.15,1e-08]
[1752747416177,60.62314721,177.16,177.15,1e-08]
[1752747416854,30.82314721,177.16,177.15,1e-08]
[1752747417055,29.8,177.16,177.15,1e-08]
[1752747417654,38.19384821,177.16,177.15,1e-08]
[1752747417854,54.97853218,177.16,177.15,1e-08]
[1752747418256,60.62314721,177.16,177.15,1e-08]
[1752747418463,52.229299,177.16,177.15,1e-08]
[1752747418670,35.44461503,177.16,177.15,1e-08]
[1752747421079,60.62314721,177.16,177.15,1e-08]
[1752747424783,22.429299,177.16,177.15,1e-08]
[1752747424963,60.60314721,177.16,177.15,1e-08]
[1752747425584,52.209299,177.16,177.15,1e-08]
[1752747425773,60.60314721,177.16,177.15,1e-08]
[1752747427291,52.209299,177.16,177.15,1e-08]
[1752747427475,60.60314721,177.16,177.15,1e-08]
[1752747432583,30.82314721,177.16,177.15,1e-08]
[1752747432790,60.60314721,177.16,177.15,1e-08]
[1752747433372,5.64461503,177.16,177.15,1e-08]
[1752747433573,35.42461503,177.16,177.15,1e-08]
[1752747433874,52.209299,177.16,177.15,1e-08]
[1752747434096,60.60314721,177.16,177.15,1e-08]
[1752747435213,52.209299,177.16,177.15,1e-08]
[1752747435391,60.60314721,177.16,177.15,1e-08]
[1752747436188,70.60314721,177.16,177.15,1e-08]
[1752747436882,22.429299,177.16,177.15,1e-08]
[1752747437081,60.60314721,177.16,177.15,1e-08]
[1752747438006,16.78468397,177.12,177.07,0.03]
[1752747438303,25.17853218,177.08,177.07,0.03]
[1752747438603,54.95853218,177.08,177.07,0.03]
[1752747438791,46.56468397,177.08,177.07,0.03]
[1752747438989,54.95853218,177.08,177.07,0.03]
[1752747439201,60.6056973,177.08,177.07,0.03]
[1752747440103,52.21184909,177.08,177.07,0.03]
[1752747441382,2.84329321,177.13,177.07,0.03]
[1752747441608,16.78468397,177.1,177.07,0.03]
[1752747441813,29.78,177.09,177.07,0.03]
[1752747442806,35.42692223,177.09,177.07,0.03]
[1752747443586,43.82077044,177.09,177.07,0.03]
[1752747443992,16.78468397,177.08,177.07,0.03]
[1752747444295,25.17853218,177.08,177.07,0.03]
[1752747444502,22.43184909,177.08,177.07,0.03]
[1752747444906,16.78468397,177.08,177.07,0.03]
[1752747445099,29.78,177.09,177.07,8.42384821]
[1752747446122,29.78,177.09,177.08,8.39384821]
[1752747446992,29.78,177.09,177.07,8.42384821]
[1752747447188,29.78,177.1,177.07,8.42384821]
[1752747450208,29.78,177.1,177.07,0.03]
[1752747450405,29.78,177.1,177.07,8.42384821]
[1752747450997,29.78,177.1,177.07,5.24666365]
[1752747452024,35.42658789,177.1,177.07,5.24666365]
[1752747452613,35.42658789,177.1,177.07,0.03]
[1752747453924,29.78,177.1,177.07,5.24666365]